fUST/lending_fUST_20250806
["ID","MTS","AMOUNT","RATE_DAILY","PERIOD"]
[377462428,1754416309548,-500.0,0.00039999,2]
[377462429,1754416309557,-500.0,0.00039999,2]
[377462430,1754416309568,-481.11834987,0.00039999,2]
[377462431,1754416309577,-500.0,0.00039999,2]
[377462432,1754416309587,-500.0,0.00039999,2]
[377462433,1754416309596,-325.99530891,0.00039999,2]
[377462434,1754416309605,-477.27308142,0.00039999,31]
[377462435,1754416309615,-441.00792827,0.00039999,2]
[377462436,1754416309625,-500.0,0.00039999,2]
[377462437,1754416309635,-601.93973816,0.00039999,31]
[377462438,1754416309645,-500.0,0.00039999,31]
[377462439,1754416309655,-583.43779354,0.00039999,31]
[377462440,1754416309663,-171.06551811,0.00039999,31]
[377462441,1754416309673,-240.61370175,0.00039999,2]
[377462442,1754416309683,-500.0,0.00039999,7]
[377462443,1754416309692,-242.88501325,0.00039999,7]
[377462444,1754416309702,-500.0,0.00039999,7]
[377462445,1754416309711,-513.2033683,0.00039999,2]
[377462446,1754416309720,-513.2033683,0.00039999,2]
[377462447,1754416309729,-513.2033683,0.00039999,2]
[377462448,1754416309739,-513.2033683,0.00039999,2]
[377462449,1754416309748,-513.2033683,0.00039999,2]
[377462450,1754416309758,-513.2033683,0.00039999,2]
[377462451,1754416309767,-513.2033683,0.00039999,2]
[377462452,1754416309777,-513.2033683,0.00039999,2]
[377462453,1754416309786,-400.0,0.00039999,2]
[377462454,1754416309795,-500.0,0.00039999,2]
[377462455,1754416309804,-195.67609167,0.00039999,31]
[377462456,1754416309814,-500.0,0.00039999,31]
[377462457,1754416309823,-270.32797932,0.00039999,31]
[377462458,1754416309832,-2105.41764886,0.00039999,30]
[377462459,1754416309841,-151.0,0.00039999,30]
[377462460,1754416309850,-300.0,0.00039999,30]
[377462461,1754416309859,-300.0,0.00039999,30]
[377462462,1754416309868,-151.0,0.00039999,30]
[377462463,1754416309879,-500.0,0.00039999,30]
[377462464,1754416309889,-151.0,0.00039999,30]
[377462465,1754416309899,-19897.22545671,0.00039999,30]
[377462466,1754416309908,-698.0,0.0004,60]
[377462467,1754416309917,-150.0,0.0004,2]
[377462468,1754416309926,-1013.80460095,0.0004,10]
[377462469,1754416309936,-400.0,0.0004,120]
[377462470,1754416309945,-603.23931261,0.0004,30]
[377462471,1754416309954,-501.211,0.0004,120]
[377462472,1754416309963,-100506.6522122,0.0004,30]
[377462473,1754416309973,-88545.11449749,0.0004,30]
[377462474,1754416309983,-6114.35140547,0.0004,30]
[377462475,1754416309993,-1895488.89956508,0.0004,120]
[377462476,1754416310020,-3854.83,0.00032328,2]
[377462477,1754416310029,-41739.05684628,0.0004,120]
[377462478,1754416310245,-160.0,0.00027607,3]
[377462479,1754416310255,-460.0,0.00027671,2]
[377462480,1754416310265,-416.17079452,0.00027945,2]
[377462481,1754416310275,-578.554705,0.00028219,7]
[377462482,1754416310284,-221.65440906,0.00028219,2]
[377462483,1754416310294,-151.0,0.00028219,7]
[377462484,1754416310303,-151.0,0.00028493,7]
[377462485,1754416310313,-460.0,0.00028493,2]
[377462486,1754416310323,-578.554705,0.00028767,7]
[377462487,1754416310332,-578.554705,0.00029041,7]
[377462488,1754416310341,-151.0,0.00029041,7]
[377462489,1754416310354,-460.0,0.00029315,2]
[377462490,1754416310363,-1207.294924,0.00029589,7]
[377462491,1754416310375,-460.0,0.00029589,2]
[377462492,1754416310385,-578.554705,0.00029589,7]
[377462493,1754416310394,-151.0,0.00029589,7]
[377462494,1754416310406,-460.0,0.00029863,2]
[377462495,1754416310416,-151.0,0.0003,14]
[377462496,1754416310425,-151.0,0.0003,14]
[377462497,1754416310436,-467.50860908,0.00030136,2]
[377462498,1754416310446,-578.554705,0.00030136,7]
[377462499,1754416310455,-1207.294924,0.00030137,7]
[377462500,1754416310465,-325.0,0.00030392,7]
[377462501,1754416310474,-325.0,0.00030392,7]
[377462502,1754416310484,-325.0,0.00030392,7]
[377462503,1754416310493,-325.0,0.00030392,7]
[377462504,1754416310502,-325.0,0.00030392,7]
[377462505,1754416310512,-1207.294924,0.000304,7]
[377462506,1754416310521,-1207.294924,0.000304,7]
[377462507,1754416310531,-1207.294924,0.00030449,7]
[377462508,1754416310540,-541.08,0.00032328,2]
[377462509,1754416310549,-3854.83,0.00032602,2]
[377462510,1754416310559,-541.08,0.00032602,2]
[377462511,1754416310570,-541.08,0.00032876,2]
[377462512,1754416310579,-3854.83,0.00032876,2]
[377462513,1754416310589,-714.24,0.0003315,2]
[377462514,1754416310599,-541.08,0.0003315,2]
[377462515,1754416310608,-3854.83,0.0003315,2]
[377462516,1754416310618,-714.24,0.00033424,2]
[377462517,1754416310629,-541.08,0.00033424,2]
[377462518,1754416310638,-541.25024658,0.00033698,2]
[377462519,1754416310648,-292.9155566,0.00036595,30]
[377462520,1754416310657,-12433.93925977,0.0004,120]
[377462521,1754416315053,-500.0,0.00026467,2]
[377462522,1754416315064,-500.0,0.00026741,2]
[377462523,1754416315073,-500.0,0.00027015,2]
[377462524,1754416315083,-500.0,0.00027289,2]
[377462525,1754416315092,-592.24,0.00027387,3]
[377462526,1754416315101,-460.0,0.00027397,2]
[377462527,1754416315110,-460.0,0.00027397,2]
[377462528,1754416315119,-460.81767758,0.00027397,2]
[377462529,1754416315129,-388.24448206,0.00027671,2]
[377462530,1754416315139,-153.182065,0.00027945,7]
[377462531,1754416315147,-160.0,0.0002804,2]
[377462532,1754416315156,-1207.294924,0.00028219,7]
[377462533,1754416315166,-196.173257,0.00028219,7]
[377462534,1754416315175,-454.38056172,0.00028767,2]
[377462535,1754416315184,-196.173257,0.00028767,7]
[377462536,1754416315194,-160.0,0.000288,7]
[377462537,1754416315203,-1207.294924,0.00028903,7]
[377462538,1754416315212,-196.173257,0.00029041,7]
[377462539,1754416315221,-1207.294924,0.00029589,7]
[377462540,1754416315230,-293.9572123,0.0003,14]
[377462541,1754416315239,-151.0,0.00030136,7]
[377462542,1754416315248,-1207.294924,0.00030137,7]
[377462543,1754416315257,-325.0,0.00030392,7]
[377462544,1754416315267,-325.0,0.00030392,7]
[377462545,1754416315276,-325.0,0.00030392,7]
[377462546,1754416315286,-325.0,0.00030392,7]
[377462547,1754416315295,-325.0,0.00030392,7]
[377462548,1754416315304,-325.0,0.00030392,7]
[377462549,1754416315313,-325.0,0.00030392,7]
[377462550,1754416315323,-325.0,0.00030392,7]
[377462551,1754416315332,-578.554705,0.000304,7]
[377462552,1754416315342,-578.554705,0.000304,7]
[377462553,1754416315351,-151.0,0.000304,7]
[377462554,1754416315365,-156.226848,0.000304,7]
[377462555,1754416315377,-578.554705,0.00030431,7]
[377462556,1754416315396,-1207.294924,0.00030449,7]
[377462557,1754416315409,-578.554705,0.00030496,7]
[377462558,1754416315418,-578.554705,0.00030496,7]
[377462559,1754416315428,-160.0,0.00031,30]
[377462560,1754416315439,-1207.294924,0.00031232,7]
[377462561,1754416315449,-1207.294924,0.00032054,7]
[377462562,1754416315459,-3854.83,0.00033424,2]
[377462563,1754416315469,-714.30217736,0.00033698,2]
[377462564,1754416315479,-3854.94428111,0.00033698,2]
[377462565,1754416315489,-160.0,0.00034,120]
[377462566,1754416315499,-292.9155566,0.00036595,30]
[377462567,1754416315509,-160.0,0.00037,10]
[377462568,1754416315519,-550490.72781577,0.0004,120]
[377462569,1754416315528,-151.0,0.0004,14]
[377462570,1754416315538,-151.0,0.0004,14]
[377462571,1754416315547,-193.643404,0.0004,14]
[377462572,1754416315557,-193.643404,0.0004,14]
[377462573,1754416315566,-160.0,0.0004,10]
[377462574,1754416315576,-461.15695721,0.0004,10]
[377462575,1754416315585,-461.15695721,0.0004,30]
[377462576,1754416315595,-231.72586818,0.0004,10]
[377462577,1754416315604,-527.3554621,0.0004,10]
[377462578,1754416315614,-527.3554621,0.0004,30]
[377462579,1754416315624,-527.3554621,0.0004,120]
[377462580,1754416315635,-2044.64147281,0.0004013,7]
[377462581,1754416315646,-1100.0,0.00040156,30]
[377462582,1754416315656,-800.0,0.00040209,30]
[377462583,1754416315665,-900.0,0.00040216,30]
[377462584,1754416315675,-160.0,0.00040226,6]
[377462585,1754416315686,-1100.0,0.00040262,30]
[377462586,1754416315696,-200.0,0.00040269,120]
[377462587,1754416315708,-4747.5,0.00040273,120]
[377462588,1754416315719,-698.0,0.00040274,60]
[377462589,1754416315729,-151.0,0.000404,120]
[377462590,1754416315738,-1100.0,0.00040455,30]
[377462591,1754416315749,-201.66,0.00040465,34]
[377462592,1754416315758,-698.0,0.00040548,60]
[377462593,1754416315768,-800.0,0.00040577,30]
[377462594,1754416315777,-160.0,0.00040812,7]
[377462595,1754416315789,-698.0,0.00040822,60]
[377462596,1754416315799,-190.0,0.00040867,30]
[377462597,1754416315809,-2000.0,0.000409,28]
[377462598,1754416315819,-53789.89,0.000409,14]
[377462599,1754416315830,-300.0,0.00041,120]
[377462600,1754416315840,-500.0,0.00041095,120]
[377462601,1754416315850,-4747.5,0.00041095,120]
[377462602,1754416315860,-698.0,0.00041096,60]
[377462603,1754416315869,-231.52,0.00041096,120]
[377462604,1754416315879,-2000.0,0.00041096,10]
[377462605,1754416315889,-32357.92,0.000411,14]
[377462606,1754416315898,-194.78770107,0.000411,120]
[377462607,1754416315908,-194.78,0.000411,120]
[377462608,1754416315917,-151.50154528,0.000411,120]
[377462609,1754416315926,-151.50154528,0.000411,120]
[377462610,1754416315936,-151.50154528,0.000411,120]
[377462611,1754416315946,-151.50154528,0.000411,120]
[377462612,1754416315955,-151.50154528,0.000411,120]
[377462613,1754416315966,-151.5,0.000411,120]
[377462614,1754416315976,-160.322519,0.000411,120]
[377462615,1754416315985,-160.32,0.000411,120]
[377462616,1754416315996,-187.04293883,0.000411,120]
[377462617,1754416316005,-187.04293883,0.000411,120]
[377462618,1754416316014,-187.04293883,0.000411,120]
[377462619,1754416316023,-187.04,0.000411,120]
[377462620,1754416316032,-2301.40475005,0.00041138,37]
[377462621,1754416316041,-201.66,0.0004115,35]
[377462622,1754416316052,-367.69824,0.000412,120]
[377462623,1754416316062,-30770.7156988,0.00041224,2]
[377462624,1754416316562,-500.0,0.00041266,30]
[377462625,1754416316576,-500.0,0.00041272,30]
[377462626,1754416316590,-500.0,0.00041332,30]
[377462627,1754416316599,-698.0,0.0004137,60]
[377462628,1754416316609,-200.0,0.00041371,3]
[377462629,1754416316619,-160.0,0.00041397,8]
[377462630,1754416316628,-213.22464,0.000414,120]
[377462631,1754416316637,-225.41743,0.000414,120]
[377462632,1754416316647,-2200.0,0.00041484,60]
[377462633,1754416316658,-800.0,0.00041495,30]
[377462634,1754416316669,-800.0,0.00041506,30]
[377462635,1754416316680,-800.0,0.00041526,30]
[377462636,1754416316690,-151.0,0.000416,120]
[377462637,1754416316701,-698.0,0.00041644,60]
[377462638,1754416316711,-200.0,0.00041681,30]
[377462639,1754416316722,-200.0,0.00041681,30]
[377462640,1754416316732,-200.0,0.00041681,30]
[377462641,1754416316741,-200.0,0.00041681,30]
[377462642,1754416316750,-200.0,0.00041681,30]
[377462643,1754416316761,-200.0,0.00041681,30]
[377462644,1754416316770,-200.0,0.00041681,30]
[377462645,1754416316780,-200.0,0.00041681,30]
[377462646,1754416316790,-320.0,0.00041681,30]
[377462647,1754416316800,-426.7,0.00041699,120]
[377462648,1754416316811,-162.20114432,0.00041778,30]
[377462649,1754416316826,-900.0,0.00041811,30]
[377462650,1754416316836,-201.66,0.00041835,36]
[377462651,1754416316847,-1029.199999,0.000419,30]
[377462652,1754416316856,-408.0,0.00041901,2]
[377462653,1754416316868,-971.0,0.00041901,2]
[377462654,1754416316878,-2148.0,0.00041901,2]
[377462655,1754416316887,-636.0,0.00041901,2]
[377462656,1754416316898,-4747.5,0.00041917,120]
[377462657,1754416316910,-698.0,0.00041918,60]
[377462658,1754416316922,-1100.0,0.00041979,30]
[377462659,1754416316932,-160.0,0.00041982,9]
[377462660,1754416316942,-250000.0,0.00042,60]
[377462661,1754416316952,-623.56788508,0.00042,5]
[377462662,1754416316963,-400.0,0.00042,120]
[377462663,1754416316973,-900.0,0.00042,120]
[377462664,1754416316984,-800.0,0.00042025,30]
[377462665,1754416316994,-2258.0,0.00042103,5]
[377462666,1754416317005,-200.0,0.00042181,120]
[377462667,1754416317014,-500.0,0.00042186,30]
[377462668,1754416317023,-698.0,0.00042191,60]
[377462669,1754416317034,-200.0,0.00042231,120]
[377462670,1754416317042,-500.0,0.00042305,30]
[377462671,1754416317053,-426.7,0.00042319,120]
[377462672,1754416317064,-900.0,0.00042325,30]
[377462673,1754416317074,-200.0,0.00042332,120]
[377462674,1754416317085,-200.0,0.00042359,120]
[377462675,1754416317096,-2301.40475005,0.00042445,39]
[377462676,1754416317106,-500.0,0.00042465,120]
[377462677,1754416317115,-698.0,0.00042465,60]
[377462678,1754416317125,-201.66,0.0004252,37]
[377462679,1754416317136,-1100.0,0.0004252,30]
[377462680,1754416317145,-800.0,0.00042562,30]
[377462681,1754416317154,-160.0,0.00042567,10]
[377462682,1754416317164,-1493.83276374,0.0004258,60]
[377462683,1754416317173,-19151.79173891,0.00042593,2]
[377462684,1754416317183,-900.0,0.00042636,30]
[377462685,1754416317192,-151.0,0.000427,120]
[377462686,1754416317201,-800.0,0.00042733,30]
[377462687,1754416317211,-900.0,0.00042734,30]
[377462688,1754416317220,-4747.5,0.00042739,120]
[377462689,1754416317229,-698.0,0.00042739,60]
[377462690,1754416317238,-32357.92,0.000428,14]
[377462691,1754416317247,-53789.89,0.000428,14]
[377462692,1754416317257,-200.0,0.00042895,120]
[377462693,1754416317266,-1100.0,0.00042935,30]
[377462694,1754416317275,-426.7,0.0004294,120]
[377462695,1754416317284,-698.0,0.00043013,60]
[377462696,1754416317293,-367.69824,0.000431,120]
[377462697,1754416317302,-160.0,0.00043153,11]
[377462698,1754416317311,-900.0,0.00043172,30]
[377462699,1754416317321,-201.66,0.00043205,38]
[377462700,1754416317330,-900.0,0.0004326,30]
[377462701,1754416317339,-708.59765581,0.00043287,60]
[377462702,1754416317349,-3235.73471098,0.000433,120]
[377462703,1754416317363,-1100.0,0.00043331,30]
[377462704,1754416317373,-800.0,0.00043368,30]
[377462705,1754416317382,-500.0,0.00043438,30]
[377462706,1754416317393,-800.0,0.00043458,30]
[377462707,1754416317403,-800.0,0.00043538,30]
[377462708,1754416317412,-500.0,0.00043558,30]
[377462709,1754416317422,-426.7,0.0004356,120]
[377462710,1754416317432,-4747.5,0.00043561,120]
[377462711,1754416317442,-200.0,0.00043597,120]
[377462712,1754416317452,-206.0,0.0004361,30]
[377462713,1754416317461,-160.0,0.00043738,12]
[377462714,1754416317470,-2301.40475005,0.00043752,42]
[377462715,1754416317480,-1000.0,0.000438,90]
[377462716,1754416317490,-500.0,0.00043835,120]
[377462717,1754416317500,-204.17379784,0.00043836,2]
[377462718,1754416317509,-2500.0,0.00043836,10]
[377462719,1754416317519,-201.66,0.0004389,39]
[377462720,1754416317528,-151.0,0.000439,120]
[377462721,1754416317538,-386.4,0.00044,120]
[377462722,1754416317547,-250000.0,0.00044,90]
[377462723,1754416317557,-400.0,0.00044,120]
[377462724,1754416317567,-300.0,0.00044,120]
[377462725,1754416317578,-900.0,0.0004409,30]
[377462726,1754416317588,-1100.0,0.00044091,30]
[377462727,1754416317598,-426.7,0.0004418,120]
[377462728,1754416317608,-1383.58944281,0.00044247,7]
[377462729,1754416317618,-500.0,0.0004428,60]
[377462730,1754416317627,-500.0,0.0004428,60]
[377462731,1754416317639,-160.0,0.00044323,13]
[377462732,1754416317648,-4747.5,0.00044383,120]
[377462733,1754416317657,-32357.92,0.000444,14]
[377462734,1754416317668,-1100.0,0.0004445,30]
[377462735,1754416317677,-800.0,0.00044514,30]
[377462736,1754416317686,-201.66,0.00044575,40]
[377462737,1754416317696,-426.7,0.00044801,120]
[377462738,1754416317706,-800.0,0.00044864,30]
[377462739,1754416317715,-408.0,0.00044901,2]
[377462740,1754416317725,-971.0,0.00044901,2]
[377462741,1754416317734,-2148.0,0.00044901,2]
[377462742,1754416317744,-636.0,0.00044901,2]
[377462743,1754416317754,-160.0,0.00044909,14]
[377462744,1754416317763,-900.0,0.00044935,30]
[377462745,1754416317773,-500.0,0.00044991,30]
[377462746,1754416317782,-3000.0,0.00045,120]
[377462747,1754416317792,-367.69824,0.00045,120]
[377462748,1754416317801,-161.63,0.00045,5]
[377462749,1754416317810,-1000.0,0.00045,120]
[377462750,1754416317819,-499500.00790167,0.00045,120]
[377462751,1754416317829,-206.0,0.00045,30]
[377462752,1754416317839,-151.0,0.00045,120]
[377462753,1754416317848,-151.0,0.00045,120]
[377462754,1754416317858,-193.643404,0.00045,120]
[377462755,1754416317867,-193.643398,0.00045,120]
[377462756,1754416317876,-2301.40475005,0.00045059,45]
[377462757,1754416317889,-800.0,0.00045137,30]
[377462758,1754416317899,-500.0,0.00045205,120]
[377462759,1754416317908,-4747.5,0.00045205,120]
[377462760,1754416317918,-201.66,0.0004526,41]
[377462761,1754416317928,-900.0,0.00045359,30]
[377462762,1754416317938,-800.0,0.0004537,30]
[377462763,1754416317948,-500.0,0.00045414,5]
[377462764,1754416317959,-426.7,0.00045421,120]
[377462765,1754416317970,-160.0,0.00045494,15]
[377462766,1754416317980,-1000.0,0.000455,120]
[377462767,1754416317990,-365.0,0.00045553,5]
[377462768,1754416317999,-800.0,0.00045594,30]
[377462769,1754416318009,-900.0,0.0004565,30]
[377462770,1754416318019,-200.0,0.00045689,60]
[377462771,1754416318028,-200.0,0.00045689,60]
[377462772,1754416318038,-200.0,0.00045689,60]
[377462773,1754416318048,-200.0,0.00045689,60]
[377462774,1754416318057,-200.0,0.00045689,60]
[377462775,1754416318067,-200.0,0.00045689,60]
[377462776,1754416318077,-200.0,0.00045689,60]
[377462777,1754416318088,-200.0,0.00045689,60]
[377462778,1754416318098,-200.0,0.00045689,60]
[377462779,1754416318107,-200.0,0.00045689,60]
[377462780,1754416318116,-200.0,0.00045689,60]
[377462781,1754416318126,-200.0,0.00045689,60]
[377462782,1754416318137,-289.0,0.00045689,60]
[377462783,1754416318146,-1100.0,0.00045696,30]
[377462784,1754416318156,-500.0,0.00045724,30]
[377462785,1754416318165,-500.0,0.00045759,7]
[377462786,1754416318174,-400.0,0.00045759,10]
[377462787,1754416318184,-500.0,0.0004578,60]
[377462788,1754416318193,-500.0,0.0004578,60]
[377462789,1754416318202,-500.0,0.0004578,60]
[377462790,1754416318211,-533.0,0.000458,120]
[377462791,1754416318221,-800.0,0.00045855,30]
[377462792,1754416318230,-1100.0,0.00045883,30]
[377462793,1754416318239,-200.0,0.00045934,120]
[377462794,1754416318248,-200.0,0.00045934,120]
[377462795,1754416318257,-1100.0,0.00045938,30]
[377462796,1754416318266,-201.66,0.00045945,42]
[377462797,1754416318275,-250000.0,0.00046,120]
[377462798,1754416318284,-53789.89,0.00046,14]
[377462799,1754416318294,-1000.0,0.00046,120]
[377462800,1754416318303,-14149.39042821,0.00046,120]
[377462801,1754416318312,-250.0,0.00046,120]
[377462802,1754416318321,-500.0,0.00046012,10]
[377462803,1754416318330,-332.16,0.00046012,5]
[377462804,1754416318340,-500.0,0.00046019,5]
[377462805,1754416318349,-165.73,0.00046019,15]
[377462806,1754416318361,-4747.5,0.00046027,120]
[377462807,1754416318371,-426.7,0.00046041,120]
[377462808,1754416318381,-160.0,0.00046079,16]
[377462809,1754416318390,-500.0,0.0004608,60]
[377462810,1754416318400,-405.653897,0.00046143,2]
[377462811,1754416318410,-900.0,0.00046145,30]
[377462812,1754416318420,-151.0,0.000462,120]
[377462813,1754416318429,-900.0,0.00046242,30]
[377462814,1754416318439,-3894.66,0.000463,7]
[377462815,1754416318449,-500.0,0.00046337,30]
[377462816,1754416318462,-1100.0,0.00046337,30]
[377462817,1754416318472,-2301.40475005,0.00046366,48]
[377462818,1754416318482,-800.0,0.00046384,30]
[377462819,1754416318491,-206.0,0.0004639,30]
[377462820,1754416318501,-1226.32540081,0.00046466,120]
[377462821,1754416318511,-1000.0,0.000465,120]
[377462822,1754416318520,-465.5806664,0.00046575,120]
[377462823,1754416318530,-4952.95,0.00046575,120]
[377462824,1754416318540,-1196.72288634,0.00046575,10]
[377462825,1754416318549,-201.66,0.0004663,43]
[377462826,1754416318558,-426.7,0.00046662,120]
[377462827,1754416318568,-160.0,0.00046665,17]
[377462828,1754416318578,-162.47309538,0.00046665,5]
[377462829,1754416318590,-1100.0,0.00046692,30]
[377462830,1754416318600,-1100.0,0.00046706,30]
[377462831,1754416318610,-818.96134097,0.00046784,30]
[377462832,1754416318620,-4952.95,0.00046849,120]
[377462833,1754416318630,-4747.5,0.00046849,120]
[377462834,1754416318639,-367.69824,0.000469,120]
[377462835,1754416318648,-1000.0,0.00047,120]
[377462836,1754416318657,-900.0,0.00047055,30]
[377462837,1754416318666,-900.0,0.00047076,30]
[377462838,1754416318675,-501.57456818,0.0004712,30]
[377462839,1754416318685,-4952.95,0.00047123,120]
[377462840,1754416318694,-900.0,0.00047139,30]
[377462841,1754416318704,-200.0,0.00047192,120]
[377462842,1754416318714,-800.0,0.00047218,30]
[377462843,1754416318723,-426.7,0.00047282,120]
[377462844,1754416318732,-151.0,0.000473,120]
[377462845,1754416318741,-201.66,0.00047315,44]
[377462846,1754416318751,-200.0,0.00047367,120]
[377462847,1754416318760,-900.0,0.00047393,30]
[377462848,1754416318770,-4952.95,0.00047397,120]
[377462849,1754416318778,-1100.0,0.00047403,30]
[377462850,1754416318787,-1000.0,0.000475,120]
[377462851,1754416318797,-200.0,0.00047509,120]
[377462852,1754416318807,-4952.95,0.00047671,120]
[377462853,1754416318816,-4747.5,0.00047671,120]
[377462854,1754416318825,-2301.40475005,0.00047672,51]
[377462855,1754416318834,-206.0,0.0004778,30]
[377462856,1754416318843,-900.0,0.00047868,30]
[377462857,1754416318852,-200.0,0.00047873,120]
[377462858,1754416318861,-408.0,0.00047901,2]
[377462859,1754416318870,-971.0,0.00047901,2]
[377462860,1754416318882,-2148.0,0.00047901,2]
[377462861,1754416318891,-636.0,0.00047901,2]
[377462862,1754416318900,-426.7,0.00047902,120]
[377462863,1754416318910,-500.0,0.0004791,30]
[377462864,1754416318919,-4952.95,0.00047945,120]
[377462865,1754416318929,-8000.0,0.00048,7]
[377462866,1754416318938,-1000.0,0.00048,120]
[377462867,1754416318947,-250000.0,0.00048,120]
[377462868,1754416318956,-1000.0,0.00048,120]
[377462869,1754416318965,-400.0,0.00048,120]
[377462870,1754416318975,-4244.27,0.00048,7]
[377462871,1754416318984,-1653.99,0.00048,14]
[377462872,1754416318994,-201.66,0.00048,45]
[377462873,1754416319004,-200.0,0.00048023,120]
[377462874,1754416319013,-1100.0,0.00048058,30]
[377462875,1754416319022,-500.0,0.0004813,30]
[377462876,1754416319032,-4952.95,0.00048219,120]
[377462877,1754416319041,-900.0,0.00048252,30]
[377462878,1754416319051,-800.0,0.0004837,30]
[377462879,1754416319060,-800.0,0.00048447,30]
[377462880,1754416319070,-1100.0,0.00048468,30]
[377462881,1754416319080,-4952.95,0.00048493,120]
[377462882,1754416319089,-4747.5,0.00048493,120]
[377462883,1754416319099,-1000.0,0.000485,120]
[377462884,1754416319109,-151.0,0.000485,120]
[377462885,1754416319118,-200.0,0.0004851,120]
[377462886,1754416319127,-426.7,0.00048523,120]
[377462887,1754416319137,-201.66,0.00048684,46]
[377462888,1754416319147,-4952.95,0.00048767,120]
[377462889,1754416319157,-1100.0,0.00048778,30]
[377462890,1754416319167,-1615.91435564,0.00048788,120]
[377462891,1754416319177,-1615.91435564,0.00048793,120]
[377462892,1754416319186,-367.69827,0.000488,120]
[377462893,1754416319195,-4636.21660595,0.000488,120]
[377462894,1754416319205,-1100.0,0.00048842,30]
[377462895,1754416319215,-9927.51,0.00048843,15]
[377462896,1754416319224,-342.12,0.00048843,15]
[377462897,1754416319234,-1615.91435564,0.00048852,120]
[377462898,1754416319243,-1615.91435564,0.00048871,120]
[377462899,1754416319253,-200.0,0.000489,120]
[377462900,1754416319262,-167.82875577,0.00048955,30]
[377462901,1754416319272,-2301.40475005,0.00048979,53]
[377462902,1754416319282,-309.04919981,0.00049,15]
[377462903,1754416319292,-32357.92,0.00049,14]
[377462904,1754416319301,-1000.0,0.00049,120]
[377462905,1754416319311,-4952.95,0.00049041,120]
[377462906,1754416319320,-224.43822694,0.00049096,2]
[377462907,1754416319330,-426.7,0.00049143,120]
[377462908,1754416319339,-206.0,0.0004916,30]
[377462909,1754416319349,-1623.9877763,0.00049184,30]
[377462910,1754416319363,-213.22465,0.000492,120]
[377462911,1754416319372,-225.41743,0.000492,120]
[377462912,1754416319382,-966.45,0.00049235,30]
[377462913,1754416319391,-800.0,0.00049293,30]
[377462914,1754416319402,-300.0,0.00049315,120]
[377462915,1754416319412,-300.0,0.00049315,120]
[377462916,1754416319421,-300.0,0.00049315,120]
[377462917,1754416319431,-300.0,0.00049315,120]
[377462918,1754416319441,-300.0,0.00049315,120]
[377462919,1754416319450,-300.0,0.00049315,120]
[377462920,1754416319460,-300.0,0.00049315,120]
[377462921,1754416319470,-300.0,0.00049315,120]
[377462922,1754416319479,-300.0,0.00049315,120]
[377462923,1754416319490,-300.0,0.00049315,120]
[377462924,1754416319500,-218.86106336,0.00049315,120]
[377462925,1754416319511,-4952.95,0.00049315,120]
[377462926,1754416319520,-4747.5,0.00049315,120]
[377462927,1754416319530,-5000.0,0.00049315,120]